Workbook

Sheet CONSECUTIVO
B1: Nº | C1: RECIBIDO DE: | D1: POR CONCEPTO DE: 1/5 | G1: PAGADO
B2: 1 | C2: MLT RACORES | D2: $ 1,136,755 | E2: 2025-03-06 | G2: 2025-03-06
B3: 2 | C3: ACUSTEC | D3: $ 1,776,180 | E3: 2024-01-31 | G3: 2025-03-21 | J3: PAGARON $1.759.000 SOBRA $109.000
B4: 3 | C4: TH FIBERGLASS | D4: $ 1,291,800 | E4: 2025-03-31 | G4: 2025-03-26 | J4: 2025-04-23 | N4: A PARTIR DE 4 UVT
B5: 4 | C5: ACUSTEC | D5: $ 394,814 | E5: 2025-04-07 | G5: 2025-04-11
B6: 5 | C6: DEKONSTRUCTODO | D6: $ 88,000 | E6: 2025-04-28 | G6: 2025-07-09 | J6: GENERAL | Q6: 1200X2400 | R6: $ 11,500,000
B7: 6 | C7: PANATECH | D7: $ 864,409 | E7: 2025-04-29 | G7: 2025-06-13 | J7: 6% | K7: RETEFUENTE | L7: 6% | O7: ACUSTEC | Q7: 1500X3000 | R7: $ 10,000,000
B8: 7 | C8: PANATECH | D8: $ 1,119,533 | E8: 2025-04-30 | G8: 2025-06-13 | J8: 11,04 X 1.000 | K8: RETEICA | L8: 1.104% | O8: salario MINIMO 2025 | Q8: $ 1,423,500
B9: 8 | C9: ACUSTEC | D9: $ 100,975 | E9: 2025-05-28 | G9: 2025-05-30 | L9: =L7+L8 -> 7.104% | M9: TOTAL RETENCIONES | O9: MAX C.C. | Q9: =(Q8*100)/40 -> $ 3,558,750
B10: 9 | C10: DEKONSTRUCTODO | D10: $ 263,064 | E10: 2024-03-06 | G10: 2025-08-15 | L10: =100%-L9 -> 92.896% | M10: NETO RECIBIDO EN % | P10: 1200X2400 | Q10: VLR NETO | R10: VLR C.C.
B11: 10 | C11: DEKONSTRUCTODO | D11: $ 160,000 | E11: 2025-09-22 | G11: 2025-09-23 | J11: VALOR NETO | K11: $ 500,000 | L11: =(K11*L9)/L10+K11 -> $ 538,236 | M11: VALOR CUENTA DE COBRO | P11: C.C. 016 | Q11: $ 2,990,000 | R11: $ 3,019,165
B12: 11 | C12: FSS INTER | D12: $ 664,184 | E12: 2025-10-08 | G12: 2025-10-20 | P12: C.C. 017 | Q12: $ 3,524,000 | R12: $ 3,558,374
B13: 12 | C13: CONJUNTO CERRADO VILLA DOCENTE II. | D13: $ 1,876,000 | E13: 2025-10-10 | G13: 2025-10-22 | H13: C.C. $1,576 + $300 PIDIO FAVOR | K13: COMPROBACION | L13: $ 1,576,000 | M13: VALOR CUENTA DE COBRO | Q13: $ 3,524,000
B14: 13 | C14: INNOVA PUBLICIDAD VISUAL S.A.S. | D14: $ 1,498,000 | E14: 2025-10-29 | G14: 2025-10-29 | L14: =L13*6% -> $ 94,560 | M14: RETEFUENTE | Q14: $ 3,524,000
B15: 14 | C15: CEDICOH | D15: $ 150,000 | E15: 2025-11-10 | G15: 2025-11-10 | L15: =(L13/1000)*11.04 -> $ 17,399 | M15: RETEICA
B16: 15 | C16: FSS INTER | D16: $ 538,236 | E16: 2025-11-13 | G16: 2025-11-20 | L16: =L13-L14-L15 -> $ 1,464,041 | M16: VALOR NETO
B17: 16 | C17: ACUSTEC | D17: $ 2,990,000 | E17: 2025-11-24
B18: 17 | C18: DEKONSTRUCTODO | E18: 2024-07-19 | J18: DEKONSTRUCTODO
B19: 18 | C19: DEKONSTRUCTODO | E19: 2024-08-06 | J19: 6% | K19: RETEFUENTE | L19: 4%
B20: 19 | J20: 9,66 X 1.000 | K20: RETEICA | L20: 0.966%
B21: 20 | L21: =L19+L20 -> 4.966% | M21: TOTAL RETENCIONES
B22: 21 | L22: =100%-L21 -> 95.034% | M22: NETO RECIBIDO EN %
B23: 22 | J23: VALOR NETO | K23: $ 500,000 | L23: =(K23*L21)/L22+K23 -> $ 526,127 | M23: VALOR CUENTA DE COBRO | Q23: 60 | R23: 100
B24: 23 | Q24: 54 | R24: =(Q24*R23)/Q23 -> 90
B25: 24 | K25: COMPROBACION | L25: $ 664,184 | M25: VALOR CUENTA DE COBRO
B26: 25 | L26: =L25*4% -> $ 26,567 | M26: RETEFUENTE | P26: 18:30:00 | Q26: 18.5
B27: 26 | L27: =(L25/1000)*9.66 -> $ 6,416 | M27: RETEICA | P27: 20:54:00 | Q27: 20.9
B28: 27 | L28: =L25-L26-L27 -> $ 631,201 | M28: VALOR NETO | P28: 18:41:00
B29: 28 | Q29: =SUM(Q26:Q28) -> 39.4 | R29: =Q29*4200 -> 165480
B30: 29 | J30: ACUSTEC / FSS INTER
B31: 30 | R31: =Q28+Q27 -> 20.9 | S31: =R31*4200 -> 87780
B32: 31 | J32: 9,66 X 1.000 | K32: RETEICA | L32: 0.966% | S32: =Q26*4200 -> 77700
B33: 32 | L33: =L31+L32 -> 0.966% | M33: TOTAL RETENCIONES
B34: 33 | L34: =100%-L33 -> 99.034% | M34: NETO RECIBIDO EN %
B35: 34 | J35: VALOR NETO | K35: $ 3,524,000 | L35: =(K35*L33)/L34+K35 -> $ 3,558,374 | M35: VALOR CUENTA DE COBRO
B36: 35
B37: 36 | K37: COMPROBACION | L37: $ 3,558,374 | M37: VALOR CUENTA DE COBRO
B38: 37 | M38: RETEFUENTE
B39: 38 | L39: =(L37/1000)*9.66 -> $ 34,374 | M39: RETEICA
B40: 39 | C40: DEKONSTRUCTODO | D40: $ 200,000 | E40: 2022-12-16 | L40: =L37-L38-L39 -> $ 3,524,000 | M40: VALOR NETO
B41: 40
B42: 41
B43: 42 | N43: $ 664,184
B44: 43 | N44: $ 657,767
B45: 44 | N45: =N43-N44 -> $ 6,417
B46: 45 | N46: $ 617,000
B47: 46 | N47: =+N44-N46 -> $ 40,767
B48: 47
B49: 48
B50: 49
B51: 50
B52: 51
B53: 52
B54: 53
B55: 54
B56: 55
B57: 56
B58: 57
B59: 58
B60: 59
B61: 60
B62: 61
B63: 62
B64: 63
B65: 64
B66: 65
B67: 66
B68: 67
B69: 68
B70: 69
B71: 70
B72: 71
B73: 72
B74: 73
B75: 74
B76: 75
B77: 76
B78: 77
B79: 78
B80: 79
B81: 80
B82: 81
B83: 82
B84: 83
B85: 84
B86: 85
B87: 86
B88: 87
B89: 88
B90: 89
B91: 90
B92: 91
B93: 92
B94: 93
B95: 94
B96: 95
B97: 96
B98: 97
B99: 98
B100: 99
B101: 100
B102: 101
B103: 102
B104: 103
B105: 104
B106: 105
B107: 106
B108: 107
B109: 108
B110: 109
B111: 110
B112: 111
B113: 112
B114: 113
B115: 114
B116: 115
B117: 116
B118: 117
B119: 118
B120: 119
B121: 120
B122: 121
B123: 122
B124: 123
B125: 124
B126: 125
B127: 126
B128: 127
B129: 128
B130: 129
B131: 130
B132: 131
B133: 132
B134: 133
B135: 134
B136: 135
B137: 136
B138: 137
B139: 138
B140: 139
B141: 140
B142: 141
B143: 142
B144: 143
B145: 144
B146: 145
B147: 146
B148: 147
B149: 148
B150: 149
B151: 150
B152: 151
B153: 152
B154: 153
B155: 154
B156: 155
B157: 156
B158: 157
B159: 158
B160: 159
B161: 160
B162: 161
B163: 162
B164: 163
B165: 164
B166: 165
B167: 166
B168: 167
B169: 168
B170: 169
B171: 170
B172: 171
B173: 172
B174: 173
B175: 174
B176: 175
B177: 176
B178: 177
B179: 178
B180: 179
B181: 180
B182: 181
B183: 182
B184: 183
B185: 184
B186: 185
B187: 186
B188: 187
B189: 188
B190: 189
B191: 190
B192: 191
B193: 192
B194: 193
B195: 194
B196: 195
B197: 196
B198: 197
B199: 198
B200: 199
... 1 more rows

Sheet DATOS
B1: NOMBRE | C1: DIRECCION | D1: TELEFONO | E1: C.C. | F1: NIT. | G1: Nº C.C. ó NIT.
B2: INVERSIONES Y ASESORIAS ERPO & CIA S.C.S | C2: CRA 8 Nº 15-73 OF. 802 | D2: 4863737 | G2: 830.084.358-2
B3: DEALERCOM LTDA. | C3: CARRERA 16 Nº 61-23 | D3: 3474237 | F3: X | G3: 830.104.838-3
B4: PUNTO SALITRE. | C4: AV. ESPERANZA CON 68D | D4: 6006015
B5: AFA LTDA. | C5: CALLE 19 Nº 5 -25 PISO 7 | D5: 3365410 | F5: X | G5: 860.401.653-0
B6: COSINTE LTDA. | C6: CRA 14 Nº 95-61 | D6: 6103337 | F6: X | G6: 830.019.581-2

Sheet OTROS
D1: CUENTA DE COBRO
D2: Nº | F2: 017
A4: FECHA | B4: CLIENTE | F4: C.C. ó NIT.
A5: =NOW() -> 2025-11-24T11:32:57.250 | B5: =VLOOKUP(F2,CONSECUTIVO!$B$2:$F$200,2,FALSE) -> DEKONSTRUCTODO | F5: =VLOOKUP(B5,DATOS!$B$2:$G$100,6,FALSE) ->  | I5: SELECCIONE EL TIPO | K5: 2 | P5: MI PLANILLA
A6: DIRECCION | D6: TELEFONO | P6: VOUCHER
A7: =VLOOKUP(B5,DATOS!$B$2:$G$100,2,FALSE) ->  | D7: =VLOOKUP(B5,DATOS!$B$2:$G$100,3,FALSE) ->  | I7: 1 | J7: MI PLANILLA
A8: DEBE A: | I8: 2 | J8: VOUCHER'S
A9: IPCOL NETWORKS | I9: 3 | J9: F S
A11: =PesosCO(F22) -> LA SUMA DE: CIENTO CINCUENTA MIL PESOS M/CTE.
A12: POR CONCEPTO DE:
A13: =""&VLOOKUP(F2,CONSECUTIVO!$B$2:$F$200,3,FALSE) -> 
I14: 2 | J14: FECHA | K14: CANT. | L14: VOUCHER | M14: VALOR UNITARIO | N14: VALOR TOTAL
A15: =""&VLOOKUP(K5,#REF!,2,FALSE) ->  | B15: =""&VLOOKUP(K5,#REF!,3,FALSE) ->  | C15: DESCRIPCION | E15: =""&VLOOKUP(K5,#REF!,5,FALSE) ->  | F15: =""&VLOOKUP(K5,#REF!,6,FALSE) -> 
A16: FEBRERO 2014 | C16: PRESTAMO HECHO POR EDUARDO GROSSO | E16: $ 150,000 | F16: $ 150,000
B21: ACEPTADA POR: | D21: ______________________
C22: _______________________________ | E22: TOTAL | F22: =SUM(F16:F20) -> $ 150,000
C23: C.C.
A24: IPCOL NETWORKS. Carrera 16 Nº 61-23 Bogotá D.C. Colombia. Tel: 2112433
A25: pagina web: ipcol.ath.cx e-mail: ipcol.ath.cx@hotmail.com

Sheet ACUSTEC
A5: Bogotá D.C. | B5: Lunes, 24 de noviembre de 2025.
G8: CUENTA DE COBRO No. 016
A11: ACUSTICA TECNICA ACUSTEC DE COLOMBIA S.A.S
A12: NIT: 830.068.504-4
A16: DEBE A:
A20: WILMER VALERO
A21: C.C. No. 80.056.937
A25: =PesosCO(A26) -> LA SUMA DE: TRES MILLONES DIECINUEVE MIL CIENTO SESENTA Y CINCO PESOS M/CTE.
A26: $ 3,019,165
A29: POR CONCEPTO DE:
A31: Servicio de acondicionamiento de sistema esclavo en eje Z para
A32: Router CNC 1200x2400
A40: WILMER VALERO.
A41: C.C. No. 80.056.937
A42: Tel: 3105719964
A44: Acorde al articulo 383 del ET, certifico bajo la gravedad de juramento que mis ingresos
A45: provienen de rentas laborales y no he subcontratado, para efectos de retencion en la fuente.

Sheet TH FIBERGLASS
A5: Bogotá D.C. | B5: Lunes, 31 de marzo de 2025.
G8: CUENTA DE COBRO No. 003
A11: TH FIBERGLASS PARTS S.A.S.
A12: NIT: 901.586.069-0
A16: DEBE A:
A20: WILMER VALERO
A21: C.C. No. 80.056.937
A25: =PesosCO(A26) -> LA SUMA DE: UN MILLON DOSCIENTOS NOVENTA Y UN MIL OCHOCIENTOS PESOS M/CTE.
A26: $ 1,291,800
A29: POR CONCEPTO DE:
A31: Servicio de cambio de rodamientos de Spindle GDF60-18Z-6,0.
A40: WILMER VALERO.
A41: C.C. No. 80.056.937
A42: Tel: 3105719964
A44: Acorde al articulo 383 del ET, certifico bajo la gravedad de juramento que mis ingresos
A45: provienen de rentas laborales y no he subcontratado, para efectos de retencion en la fuente.

Sheet FSS INTER
A5: Bogotá D.C. | B5: Jueves, 13 de noviembre de 2025.
G8: CUENTA DE COBRO No. 015
A11: FSS INTER S.A.S.
A12: NIT: 900.569.315-2
A16: DEBE A:
A20: WILMER VALERO
A21: C.C. No. 80.056.937
A25: =PesosCO(A26) -> LA SUMA DE: QUINIENTOS TREINTA Y OCHO MIL DOSCIENTOS TREINTA Y SEIS PESOS M/CTE.
A26: $ 538,236
A29: POR CONCEPTO DE:
A31: Configuracion e induccion de Software de control (CAD/CAM)
A32: para router BLUE ELEPHANT y RICHAUTO A11.
A39: WILMER VALERO.
A40: C.C. No. 80.056.937
A41: Tel: 3105719964
A43: Acorde al articulo 383 del ET, certifico bajo la gravedad de juramento que mis ingresos
A44: provienen de rentas laborales y no he subcontratado, para efectos de retencion en la fuente.

Sheet CEDICOH
A5: Bogotá D.C. | B5: Lunes, 10 de noviembre de 2025.
G8: CUENTA DE COBRO No. 014
A11: CEDICOH S.A.S.
A12: NIT: 901.580.128-1
A16: DEBE A:
A20: WILMER VALERO
A21: C.C. No. 80.056.937
A25: =PesosCO(A26) -> LA SUMA DE: CIENTO CINCUENTA MIL PESOS M/CTE.
A26: $ 150,000
A29: POR CONCEPTO DE:
A31: MANTENIMIENTO ROUTER CNC.
A39: WILMER VALERO.
A40: C.C. No. 80.056.937
A41: Tel: 3105719964
A43: Acorde al articulo 383 del ET, certifico bajo la gravedad de juramento que mis ingresos
A44: provienen de rentas laborales y no he subcontratado, para efectos de retencion en la fuente.

Sheet INNOVA
A5: Bogotá D.C. | B5: Miercoles, 29 de octubre de 2025.
G8: CUENTA DE COBRO No. 013
A11: INNOVA PUBLICIDAD VISUAL S.A.S.
A12: NIT: 900.406.455-6
A16: DEBE A:
A20: WILMER VALERO
A21: C.C. No. 80.056.937
A25: =PesosCO(A26) -> LA SUMA DE: UN MILLON CUATROCIENTOS NOVENTA Y OCHO MIL PESOS M/CTE.
A26: $ 1,498,000
A29: POR CONCEPTO DE:
A31: Ruteo de laminas de melaminico de 15mm de espesor, según planos.
A39: WILMER VALERO.
A40: C.C. No. 80.056.937
A41: Tel: 3105719964
A43: Acorde al articulo 383 del ET, certifico bajo la gravedad de juramento que mis ingresos
A44: provienen de rentas laborales y no he subcontratado, para efectos de retencion en la fuente.

Sheet fredy reyes
A5: Bogotá D.C. | B5: Viernes, 10 de octubre de 2025.
G8: CUENTA DE COBRO No. 012
A11: CONJUNTO CERRADO VILLA DOCENTE II.
A12: YOPAL, CASANARE.
A16: DEBE A:
A20: WILMER VALERO
A21: C.C. No. 80.056.937
A25: =PesosCO(A26) -> LA SUMA DE: DOS MILLONES DOSCIENTOS SETENTA Y SEIS MIL PESOS M/CTE.
A26: $ 2,276,000
A29: POR CONCEPTO DE:
A31: Automatización de válvula de paso marca ACQUATTI de 3"
A40: WILMER VALERO.
A41: C.C. No. 80.056.937
A42: Tel: 3105719964
A44: Acorde al articulo 383 del ET, certifico bajo la gravedad de juramento que mis ingresos
A45: provienen de rentas laborales y no he subcontratado, para efectos de retencion en la fuente.

Sheet DEKONSTRUCTODO
A5: Bogotá D.C. | B5: Lunes, 22 de septiembre de 2025.
G8: CUENTA DE COBRO No. 010
A11: DEKONSTRUCTODO S.A.S.
A12: NIT: 901.067.886-5
A16: DEBE A:
A20: WILMER VALERO
A21: C.C. No. 80.056.937
A25: =PesosCO(A26) -> LA SUMA DE: CIENTO SESENTA MIL PESOS M/CTE.
A26: $ 160,000
A29: POR CONCEPTO DE:
A31: Corte lamina de alucobond, según Orden de Trabajo No 01-2504281
A40: WILMER VALERO.
A41: C.C. No. 80.056.937
A42: Tel: 3105719964
A44: Acorde al articulo 383 del ET, certifico bajo la gravedad de juramento que mis ingresos
A45: provienen de rentas laborales y no he subcontratado, para efectos de retencion en la fuente.

Sheet DEKONSTRUCTODO PRECIOS
B3: FECHA | C3: VALOR | D3: AREA | F3: AREA TOTAL
B4: 2022-01-13 | C4: $ 60,000 | D4: 2.4 | E4: 0.5 | F4: =D4*E4 -> 1.2
B5: 2022-02-14 | C5: $ 90,000 | D5: 3.5 | E5: 0.85 | F5: =D5*E5 -> 2.975
B6: 2022-02-22 | C6: $ 100,000 | D6: 4.2 | E6: 1.05 | F6: 4.41
B7: 2022-02-24 | C7: $ 90,000 | D7: 3.4 | E7: 0.85 | F7: 2.89 | H7: area | I7: precio
B8: 2022-02-25 | C8: $ 60,000 | D8: 2.1 | E8: 0.65 | F8: 1.365 | H8: 1.50 | I8: $ 60,000
B9: 2022-03-24 | C9: $ 70,000 | D9: 2.5 | E9: 0.65 | F9: 1.625 | H9: 1.90 | I9: $ 70,000
B10: 2022-03-29 | C10: $ 100,000 | D10: 3.5 | E10: 0.95 | F10: 3.325 | H10: 2.30 | I10: $ 80,000
B11: 2022-03-30 | C11: $ 100,000 | D11: 3.5 | E11: 0.95 | F11: 3.325 | H11: 2.70 | I11: $ 90,000
B12: 2022-04-06 | C12: $ 100,000 | D12: 4 | E12: 1.05 | F12: 4.2 | H12: 3.10 | I12: $ 100,000
B13: 2022-04-07 | C13: $ 60,000 | D13: 2 | E13: 0.65 | F13: 1.3
B14: 2022-04-28 | C14: $ 60,000 | D14: 2.1 | E14: 0.55 | F14: 1.155
B15: 2022-06-06 | C15: $ 60,000 | D15: 2.3 | E15: 0.65 | F15: 1.495
B16: 2022-06-06 | C16: $ 60,000 | D16: 2.3 | E16: 0.85 | F16: 1.955
B17: 2022-06-16 | C17: $ 60,000 | D17: 2.5 | E17: 0.75 | F17: 1.875
B18: 2022-06-21 | C18: $ 65,000 | D18: 3 | E18: 0.8 | F18: 2.4
B19: 2022-06-21 | C19: $ 65,000 | D19: 3 | E19: 0.8 | F19: =D19*E19 -> 2.4
B20: 2022-07-26 | C20: $ 90,000 | D20: 3.4 | E20: 0.95 | F20: 3.23
B21: 2022-07-26 | C21: $ 60,000 | D21: 2.7 | E21: 0.95 | F21: 2.565
B22: 2022-08-17 | C22: $ 60,000 | D22: 2.5 | E22: 0.65 | F22: 1.625
B23: 2022-09-28 | C23: $ 100,000 | D23: 3.6 | E23: 0.85 | F23: 3.06
B24: 2022-09-28 | C24: $ 70,000 | D24: 2.6 | E24: 0.85 | F24: 2.21
B25: 2022-09-29 | C25: $ 100,000 | D25: 3.6 | E25: 0.85 | F25: 3.06
B26: 2022-09-29 | C26: $ 70,000 | D26: 2.6 | E26: 0.85 | F26: 2.21
B27: 2022-10-10 | C27: $ 60,000 | D27: 2.5 | E27: 0.65 | F27: =D27*E27 -> 1.625
B28: 2022-10-25 | D28: 2.5 | E28: 0.55 | F28: 1.375
D29: 5.3 | E29: 1.3 | F29: 6.89
B30: 2023-02-01 | D30: 3.6 | E30: 0.95 | F30: 3.42 | G30: CON TAPAS | H30: $ 140,000
D31: 4.05 | E31: 0.9 | F31: 3.645
D32: 3.5 | E32: 0.75 | F32: 2.625
D33: 4.5 | E33: 1.05 | F33: =D33*E33 -> 4.725 | G33: CON TAPAS | H33: $ 170,000
G37: $ 4,200 | H37: min que marque router

Sheet AGAZO DESING
A5: Bogotá D.C. | B5: Viernes, 17 de junio de 2022.
G8: CUENTA DE COBRO No. 018
A11: AGAZO DESING S.A.S.
A12: NIT: 900.177.361-9
A16: DEBE A:
A20: WILMER VALERO
A21: C.C. No. 80.056.937
A25: =PesosCO(A26) -> LA SUMA DE: CIENTO CINCUENTA MIL PESOS M/CTE.
A26: $ 150,000
A29: POR CONCEPTO DE:
A31: Corte de 3 laminas de MDF, según diseño.
A40: WILMER VALERO.
A41: C.C. No. 80.056.937
A42: Tel: 3105719964
A44: Acorde al articulo 383 del ET, certifico bajo la gravedad de juramento que mis ingresos
A45: provienen de rentas laborales y no he subcontratado, para efectos de retencion en la fuente.

Sheet Bucaramanga 1
A5: Bucaramanga, | B5: Miercoles, 14 de agosto de 2019.
G8: CUENTA DE COBRO No. 001
A11: LA BODEGA ELECTRICA S.A.S.
A12: NIT: 804.014.181-2
A16: DEBE A:
A20: WILMER VALERO
A21: C.C. No. 80.056.937
A25: =PesosCO(A26) -> LA SUMA DE: TRESCIENTOS MIL PESOS M/CTE.
A26: $ 300,000
A29: POR CONCEPTO DE:
A31: Induccion de manejo, y puesta en marcha de Router CNC 60x90,
A32: con sotfware NC-Studio
A40: WILMER VALERO.
A41: C.C. No. 80.056.937
A42: Tel: 3105719964
A44: Acorde al articulo 383 del ET, certifico bajo la gravedad de juramento que mis ingresos
A45: provienen de rentas laborales y no he subcontratado, para efectos de retencion en la fuente.

Sheet PRIMAX
A5: Bogotá D.C., | B5: Viernes, 13 de marzo de 2020.
G8: CUENTA DE COBRO No. 002
A11: PRIMAX COLOMBIA S.A.
A12: NIT: 860,002,554-8
A16: DEBE A:
A20: WILMER VALERO
A21: C.C. No. 80.056.937
A25: =PesosCO(A26) -> LA SUMA DE: DOSCIENTOS DIECINUEVE MIL SEISCIENTOS NOVENTA Y OCHO PESOS M/CTE.
A26: $ 219,698
A29: POR CONCEPTO DE:
A31: Verificación, y puesta en marcha de Router CNC 60x90,
A32: con sotfware NC-Studio
A40: WILMER VALERO.
A41: C.C. No. 80.056.937
A42: Tel: 3105719964
A44: Acorde al articulo 383 del ET, certifico bajo la gravedad de juramento que mis ingresos
A45: provienen de rentas laborales y no he subcontratado, para efectos de retencion en la fuente.

Sheet PANATECH
A5: Bogotá D.C. | B5: Miercoles, 30 de abril de 2025.
G9: CUENTA DE COBRO No. 007
A14: PANATECH INGENIERIA DISEÑO Y TECNOLOGIA S.A.S
A15: NIT: 901.155.925-1
A19: DEBE A:
A23: WILMER VALERO
A24: C.C. No. 80.056.937
A28: =PesosCO(A29) -> LA SUMA DE: UN MILLON CIENTO DIECINUEVE MIL QUINIENTOS TREINTA Y TRES PESOS M/CTE.
A29: $ 1,119,533
A33: POR CONCEPTO DE:
A36: Corte de lamina melamina, según archivo:
A37: "ROMBOS TRAPECIOS MADECOR 28 4 2025"
A45: WILMER VALERO.
A46: C.C. No. 80.056.937
A47: Tel: 3105719964

Sheet MADELTEC
A5: Bogotá D.C. | B5: Miercoles, 15 de marzo de 2023.
G9: CUENTA DE COBRO No. 004
A14: MADELTEC S.A.S
A15: NIT: 900.759.865-7
A19: DEBE A:
A23: WILMER VALERO
A24: C.C. No. 80.056.937
A28: =PesosCO(A29) -> LA SUMA DE: TRESCIENTOS VEINTIDOS MIL CUATROCIENTOS SESENTA Y TRES PESOS M/CTE.
A29: $ 322,463
A33: POR CONCEPTO DE:
A36: Servicios de mantenimiento de 2 Router CNC.
A39: ORDEN DE GIRO:
A40: Bancolombia Cuenta de Ahorros 200 758 044 57 Eduardo Grosso C.C. 79.463.699
A45: WILMER VALERO.
A46: C.C. No. 80.056.937
A47: Tel: 3105719964 Dir: Calle 39 sur # 31A - 47
A48: wival@hotmail.com

Sheet furgon
A5: Bogotá D.C. | B5: Lunes, 5 de septiembre de 2022.
G8: CUENTA DE COBRO No. 026
A11: REDES Y OBRAS CIVILES ROCS S.A.S.
A12: NIT: 901.545.617
A16: DEBE A:
A20: WILMER VALERO
A21: C.C. No. 80.056.937
A25: =PesosCO(A26) -> LA SUMA DE: CUATROCIENTOS MIL PESOS M/CTE.
A26: $ 400,000
A29: POR CONCEPTO DE:
A31: PUERTAS PARA FURGON USADAS.
A40: WILMER VALERO.
A41: C.C. No. 80.056.937
A42: Tel: 3105719964
A44: Acorde al articulo 383 del ET, certifico bajo la gravedad de juramento que mis ingresos
A45: provienen de rentas laborales y no he subcontratado, para efectos de retencion en la fuente.

Sheet MACROLASER
A5: Bogotá D.C. | B5: Viernes, 5 de abril de 2024.
G8: CUENTA DE COBRO No. 012
A11: IMPORTADORA MACROLASER HR S.A.S
A12: NIT: 900.630.491-0
A16: DEBE A:
A20: WILMER VALERO
A21: C.C. No. 80.056.937
A25: =PesosCO(A26) -> LA SUMA DE: CIEN MIL PESOS M/CTE.
A26: $ 100,000
A29: POR CONCEPTO DE:
A31: Servicio de verificacion de parametros en Router CNC.
A40: WILMER VALERO.
A41: C.C. No. 80.056.937
A42: Tel: 3105719964
A44: Acorde al articulo 383 del ET, certifico bajo la gravedad de juramento que mis ingresos
A45: provienen de rentas laborales y no he subcontratado, para efectos de retencion en la fuente.

Sheet MLT RACORES
A5: Bogotá D.C. | B5: Jueves, 6 de marzo de 2025.
G8: CUENTA DE COBRO No. 001
A11: MLT RACORES S.A.S
A12: NIT: 900.343.337-3
A16: DEBE A:
A20: WILMER VALERO
A21: C.C. No. 80.056.937
A25: =PesosCO(A26) -> LA SUMA DE: UN MILLON CIENTO TREINTA Y SEIS MIL SETECIENTOS CINCUENTA Y CINCO PESOS M/CTE.
A26: $ 1,136,755
A29: POR CONCEPTO DE:
A31: MECANIZADO 528 PIEZAS BRONCE.
A40: WILMER VALERO.
A41: C.C. No. 80.056.937
A42: Tel: 3105719964
A44: Acorde al articulo 383 del ET, certifico bajo la gravedad de juramento que mis ingresos
A45: provienen de rentas laborales y no he subcontratado, para efectos de retencion en la fuente.
